[Event "DVM U20w 2019"]
[Site "Braunschweig"]
[Date "2019.12.30"]
[Round "7"]
[White "Rempe, Mieke"]
[Black "Fock, Amina"]
[Result "0-1"]
[ECO "B90"]
[WhiteElo "1619"]
[BlackElo "1807"]
[Annotator "NA"]
[PlyCount "60"]
[EventDate "2019.12.27"]
[EventType "team-tourn"]
[EventRounds "7"]
[EventCountry "GER"]
[SourceTitle "playchess.com"]
[Source "ChessBase"]
[SourceQuality "1"]
[WhiteTeam "SK Doppelbauer Kiel"]
[BlackTeam "SK Nordhorn-Blanke"]
[TimeControl "40/5400+30:1800+30"]

1. e4 {[%emt 0:00:00]} c5 {[%emt 0:00:00]} 2. Nf3 {[%emt 0:00:00]} d6 {[%emt 0:00:00]} 3. d4 {[%emt 0:00:19]} cxd4 {[%emt 0:00:00]} 4. Nxd4 {[%emt 0:00:24]} Nf6 {[%emt 0:00:00] unterminated} 5. Nc3 {[%emt 0:00:23]} a6 {[%emt 0:00:00] unterminated} 6. Be3 {[%emt 0:02:44]} e5 {[%emt 0:00:04] unterminated} 7. Nf3 {[%emt 0:01:44] unterminated} Be7 {[%emt 0:02:16]} 8. Qd2 {[%emt 0:00:45] unterminated B90: Sicilian Najdorf: Unusual White 6th moves, 6 Be3 Ng4 and 6 Be3 e5} (8. Bc4 O-O 9. O-O Nc6 10. Re1 Be6 11. Nd5 Bxd5 12. exd5 b5 13. Bf1 Nb4 14. c4 bxc4 15. Bxc4 Qc7 16. Rc1 Qb7 17. Bg5 Nbxd5 {1-0 (29) Anand,V (2756)-Giri,A (2779) Amsterdam 2019}) 8... Ng4 $146 {[%emt 0:04:23]} ({Predecessor:} 8... h6 9. O-O-O Be6 10. Be2 Qc7 11. h3 Nbd7 12. g4 b5 13. Nd5 Bxd5 14. exd5 Nb6 15. Nxe5 Nbxd5 {0-1 (38) Sarian,G (1452)-Leithoff,H (1527) Willingen 2019}) 9. Nd5 {[%emt 0:02:40]} Nxe3 {[%emt 0:00:08]} 10. Qxe3 {[%emt 0:00:15]} Nd7 {[%emt 0:01:08]} 11. O-O-O {[%emt 0:02:28]} Nc5 {[%emt 0:06:53]} 12. Nxe5 {[%emt 0:06:59]} dxe5 {[%emt 0:15:00]} 13. Nf6+ {[%emt 0:02:23]} gxf6 {[%emt 0:00:06]} 14. Rxd8+ {[%emt 0:00:06]} Kxd8 {[%emt 0:00:04] unterminated} 15. Bc4 {[%emt 0:05:03] unterminated} Be6 {[%emt 0:01:34] unterminated} 16. Rd1+ {[%emt 0:02:31] unterminated} Kc7 {[%emt 0:02:14] unterminated} 17. Bxe6 {[%emt 0:01:59] unterminated} fxe6 {[%emt 0:01:30]} 18. Qc3 {[%emt 0:00:45]} a5 {[%emt 0:00:38] unterminated} 19. g4 $17 {[%emt 0:04:49] unterminated} b5 {[%emt 0:05:09] unterminated} 20. f3 {[%emt 0:05:04]} b4 {[%emt 0:04:09]} 21. Qc4 {[%emt 0:01:11]} Kb6 {[%emt 0:00:16]} 22. a4 {[%emt 0:02:43]} bxa3 {[%emt 0:00:24]} 23. bxa3 {[%emt 0:00:18]} a4 {[%emt 0:01:24]} 24. Qb4+ {[%emt 0:04:06]} Kc6 {[%emt 0:00:25]} 25. Qc4 {[%emt 0:00:07]} Rhb8 {[%emt 0:04:54]} 26. Rd3 {[%emt 0:01:53]} Rb5 {[%emt 0:00:37]} 27. Rc3 {[%emt 0:01:04]} Kb6 {[%emt 0:00:16]} 28. Qe2 {[%emt 0:02:46]} Rc8 {[%emt 0:00:51]} 29. Rc4 {[%emt 0:02:16]} Rd8 {[%emt 0:05:25]} 30. Qe3 {[%emt 0:01:41]} Kb7 {[%emt 0:01:04] normal} 0-1

[Event "DVM U20w 2019"]
[Site "Braunschweig"]
[Date "2019.12.30"]
[Round "7"]
[White "Puls, Luisa"]
[Black "Sokolowski, Judith"]
[Result "0-1"]
[ECO "B40"]
[WhiteElo "1551"]
[BlackElo "1722"]
[Annotator "NA"]
[PlyCount "94"]
[EventDate "2019.12.27"]
[EventType "team-tourn"]
[EventRounds "7"]
[EventCountry "GER"]
[SourceTitle "playchess.com"]
[Source "ChessBase"]
[SourceQuality "1"]
[WhiteTeam "SG Güstrow/Teterow"]
[BlackTeam "Düsseldorfer SK"]
[TimeControl "40/5400+30:1800+30"]

1. e4 {[%emt 0:00:00]} c5 {[%emt 0:00:00]} 2. Nf3 {[%emt 0:00:00]} e6 {[%emt 0:00:00]} 3. d4 {[%emt 0:00:00]} cxd4 {[%emt 0:00:00]} 4. Nxd4 {[%emt 0:00:05]} Nf6 {[%emt 0:00:00]} 5. Nc3 {[%emt 0:00:25]} Nc6 {[%emt 0:00:00]} 6. Ndb5 {[%emt 0:01:08]} Bb4 {[%emt 0:00:24]} 7. a3 {[%emt 0:01:06]} Bxc3+ {[%emt 0:00:04]} 8. Nxc3 {[%emt 0:00:08]} d5 {[%emt 0:00:07]} 9. exd5 {[%emt 0:04:14]} Nxd5 {[%emt 0:00:09]} 10. Nxd5 {[%emt 0:02:12]} exd5 {[%emt 0:00:17]} 11. Bd3 {[%emt 0:03:11]} Qe7+ {[%emt 0:00:38]} 12. Qe2 {[%emt 0:05:00]} Qxe2+ {[%emt 0:00:22]} 13. Kxe2 {[%emt 0:00:53]} Ne5 {[%emt 0:01:19]} 14. Be3 {[%emt 0:10:33]} Nxd3 {[%emt 0:02:06]} 15. Kxd3 {[%emt 0:00:24]} Bf5+ {[%emt 0:02:05]} 16. Kd2 {[%emt 0:01:34]} Rc8 {[%emt 0:03:23]} 17. c3 {[%emt 0:02:30]} a6 {[%emt 0:02:21]} 18. Rhe1 {[%emt 0:02:50]} Kd7 {[%emt 0:06:24]} 19. Rad1 {[%emt 0:03:26]} Rhe8 {[%emt 0:03:19]} 20. Kc1 {[%emt 0:04:50]} Kc6 {[%emt 0:02:00]} 21. Re2 {[%emt 0:10:46]} Be4 {[%emt 0:05:40]} 22. f3 {[%emt 0:03:10]} Bg6 {[%emt 0:02:46]} 23. Kd2 {[%emt 0:09:00]} f6 {[%emt 0:09:30]} 24. Rde1 {[%emt 0:07:51]} b5 {[%emt 0:05:00]} 25. Bf2 {[%emt 0:10:04]} Rxe2+ {[%emt 0:05:14]} 26. Rxe2 {[%emt 0:00:10]} Kd7 {[%emt 0:01:07]} 27. Ke3 {[%emt 0:05:20]} a5 {[%emt 0:05:00]} 28. Rd2 {[%emt 0:05:07]} Re8+ {[%emt 0:08:13]} 29. Kd4 {[%emt 0:01:54]} Kc6 {[%emt 0:12:15]} 30. b3 {[%emt 0:01:29]} Re7 {[%emt 0:07:09]} 31. Bg3 {[%emt 0:03:50]} Bf5 {[%emt 0:03:42]} 32. Bf2 {[%emt 0:01:37]} h5 {[%emt 0:02:59]} 33. h4 {[%emt 0:00:47]} g5 {[%emt 0:00:50]} 34. hxg5 {[%emt 0:00:15]} fxg5 {[%emt 0:00:11]} 35. g3 {[%emt 0:00:57]} g4 {[%emt 0:01:26]} 36. f4 {[%emt 0:00:34]} Re4+ {[%emt 0:01:55]} 37. Kd3 {[%emt 0:00:12]} Rxf4+ {[%emt 0:03:20]} 38. Ke2 {[%emt 0:00:21]} Rf3 {[%emt 0:02:14]} 39. b4 {[%emt 0:00:59]} axb4 {[%emt 0:01:50]} 40. cxb4 {[%emt 0:00:29]} Rxa3 {[%emt 0:00:48]} 41. Rd4 {[%emt 0:06:02]} Be4 {[%emt 0:03:48]} 42. Kd2 {[%emt 0:03:46]} Rf3 {[%emt 0:03:12]} 43. Ke2 {[%emt 0:01:48]} Kd7 {[%emt 0:02:33]} 44. Ke1 {[%emt 0:02:21]} Ke6 {[%emt 0:01:13]} 45. Ke2 {[%emt 0:02:25]} Ke5 {[%emt 0:00:45]} 46. Rd2 {[%emt 0:01:08]} Rb3 {[%emt 0:02:41]} 47. Be1 {[%emt 0:04:01]} d4 {[%emt 0:05:22] normal} 0-1

[Event "DVM U20w 2019"]
[Site "Braunschweig"]
[Date "2019.12.30"]
[Round "7"]
[White "Adelhardt, Lisa"]
[Black "Ziegenfuss, Larissa"]
[Result "0-1"]
[ECO "B48"]
[WhiteElo "1418"]
[BlackElo "1755"]
[Annotator "NA"]
[PlyCount "29"]
[EventDate "2019.12.27"]
[EventType "team-tourn"]
[EventRounds "7"]
[EventCountry "GER"]
[SourceTitle "playchess.com"]
[Source "ChessBase"]
[SourceQuality "1"]
[WhiteTeam "SC Erlangen 48/88"]
[BlackTeam "SG Blau-Weiß Stadtilm"]
[TimeControl "40/5400+30:1800+30"]

1. e4 {[%emt 0:00:00]} c5 {[%emt 0:00:00]} 2. Nc3 {[%emt 0:00:00]} e6 {[%emt 0:00:00]} 3. Nf3 {[%emt 0:00:00]} Nc6 {[%emt 0:00:22]} 4. d4 {[%emt 0:00:09]} cxd4 {[%emt 0:00:37]} 5. Nxd4 {[%emt 0:00:31]} Qc7 {[%emt 0:01:51]} 6. Be3 {[%emt 0:01:28]} Nf6 {[%emt 0:02:08]} 7. a3 {[%emt 0:05:22]} Be7 {[%emt 0:03:42]} 8. Be2 {[%emt 0:01:03]} a6 {[%emt 0:00:43]} 9. O-O {[%emt 0:04:22]} O-O {[%emt 0:00:48]} 10. f4 {[%emt 0:02:55]} d6 {[%emt 0:01:12]} 11. Kh1 {[%emt 0:04:47]} Rb8 {[%emt 0:02:10]} 12. Qe1 {[%emt 0:05:24]} b5 {[%emt 0:03:27]} 13. Bd3 {[%emt 0:03:50]} Ng4 {[%emt 0:11:34]} 14. Bg1 {[%emt 0:02:03]} Nxd4 {[%emt 0:13:47]} 15. Bxd4 {[%emt 0:01:32] normal} 0-1

[Event "DVM U20w 2019"]
[Site "Braunschweig"]
[Date "2019.12.30"]
[Round "7"]
[White "Malinowsky, Celina"]
[Black "Hallfarth, Luise"]
[Result "0-1"]
[ECO "B24"]
[WhiteElo "1293"]
[BlackElo "1517"]
[Annotator "NA"]
[PlyCount "49"]
[EventDate "2019.12.27"]
[EventType "team-tourn"]
[EventRounds "7"]
[EventCountry "GER"]
[SourceTitle "playchess.com"]
[Source "ChessBase"]
[SourceQuality "1"]
[WhiteTeam "SK Doppelbauer Kiel"]
[BlackTeam "SK Nordhorn-Blanke"]
[TimeControl "40/5400+30:1800+30"]

1. e4 {[%emt 0:00:00]} c5 {[%emt 0:00:00]} 2. Nc3 {[%emt 0:00:34]} Nc6 {[%emt 0:00:00]} 3. Bc4 {[%emt 0:01:53]} g6 {[%emt 0:00:04]} 4. d3 {[%emt 0:01:57]} Bg7 {[%emt 0:00:19]} 5. a3 {[%emt 0:02:32]} e6 {[%emt 0:00:34]} 6. f4 {[%emt 0:00:45]} Nge7 {[%emt 0:00:50]} 7. Nf3 {[%emt 0:00:52]} O-O {[%emt 0:00:14]} 8. O-O {[%emt 0:02:26]} d5 {[%emt 0:00:52]} 9. Ba2 {[%emt 0:02:59]} b6 {[%emt 0:04:18]} 10. Qe1 {[%emt 0:02:46]} Ba6 11. Qg3 {[%emt 0:11:31]} dxe4 {[%emt 0:05:17]} 12. Nxe4 {[%emt 0:00:34]} Nd4 {[%emt 0:01:15]} 13. Nxd4 {[%emt 0:08:02]} Bxd4+ {[%emt 0:03:29]} 14. Kh1 {[%emt 0:00:52]} Nf5 {[%emt 0:03:42]} 15. Qe1 {[%emt 0:04:30]} Rc8 {[%emt 0:01:08]} 16. c3 {[%emt 0:10:23]} Bg7 {[%emt 0:00:25]} 17. Rf2 {[%emt 0:02:02]} Qxd3 {[%emt 0:08:54]} 18. Rd2 {[%emt 0:00:16]} Qb5 {[%emt 0:03:22]} 19. Ng5 {[%emt 0:07:00]} Rfe8 {[%emt 0:05:14]} 20. Bb1 {[%emt 0:02:53]} Rcd8 {[%emt 0:09:17]} 21. Bxf5 {[%emt 0:04:17]} Rxd2 {[%emt 0:04:03]} 22. Bxd2 {[%emt 0:00:31]} exf5 {[%emt 0:00:15]} 23. Qc1 {[%emt 0:05:12]} Re2 {[%emt 0:01:21]} 24. Nf3 {[%emt 0:03:12]} Bb7 {[%emt 0:01:11]} 25. Qf1 {[%emt 0:01:56] normal} 0-1

[Event "DVM U20w 2019"]
[Site "Braunschweig"]
[Date "2019.12.30"]
[Round "7"]
[White "Wilhelm, Anna-Lena"]
[Black "Strobel, Miriam"]
[Result "1-0"]
[ECO "C42"]
[WhiteElo "1291"]
[BlackElo "1299"]
[Annotator "NA"]
[PlyCount "30"]
[EventDate "2019.12.27"]
[EventType "team-tourn"]
[EventRounds "7"]
[EventCountry "GER"]
[SourceTitle "playchess.com"]
[Source "ChessBase"]
[SourceQuality "1"]
[WhiteTeam "SG Blau-Weiß Stadtilm"]
[BlackTeam "SC Erlangen 48/88"]
[TimeControl "40/5400+30:1800+30"]

1. e4 {[%emt 0:00:00]} e5 {[%emt 0:00:00]} 2. Nf3 {[%emt 0:00:00]} Nf6 {[%emt 0:00:00]} 3. Nxe5 {[%emt 0:00:00]} d6 {[%emt 0:00:00]} 4. Nf3 {[%emt 0:00:00]} Nxe4 {[%emt 0:00:05]} 5. Nc3 {[%emt 0:00:00]} Nxc3 {[%emt 0:01:50]} 6. dxc3 {[%emt 0:00:08]} Bf5 {[%emt 0:01:50]} 7. Be3 {[%emt 0:02:44]} Nc6 {[%emt 0:02:07]} 8. Bd3 {[%emt 0:01:19]} Be6 {[%emt 0:03:15]} 9. Qe2 {[%emt 0:00:18]} Qd7 {[%emt 0:00:38]} 10. O-O-O {[%emt 0:00:31]} O-O-O {[%emt 0:05:52]} 11. Bb5 {[%emt 0:06:18]} a6 {[%emt 0:02:44]} 12. Ne5 {[%emt 0:02:12]} Qe8 {[%emt 0:02:38]} 13. Nxc6 {[%emt 0:12:07]} bxc6 {[%emt 0:00:54]} 14. Bxa6+ {[%emt 0:03:32]} Kd7 {[%emt 0:00:35]} 15. Bc5 {[%emt 0:04:05]} Ra8 {[%emt 0:08:55] normal} 1-0

[Event "DVM U20w 2019"]
[Site "Braunschweig"]
[Date "2019.12.30"]
[Round "7"]
[White "Kessen, Fanny"]
[Black "Daoud, Shahnaz"]
[Result "1-0"]
[ECO "C01"]
[WhiteElo "1265"]
[BlackElo "1000"]
[Annotator "NA"]
[PlyCount "35"]
[EventDate "2019.12.27"]
[EventType "team-tourn"]
[EventRounds "7"]
[EventCountry "GER"]
[SourceTitle "playchess.com"]
[Source "ChessBase"]
[SourceQuality "1"]
[WhiteTeam "SC Borussia Lichtenberg"]
[BlackTeam "SK Lehrte 1919"]
[TimeControl "40/5400+30:1800+30"]

1. e4 {[%emt 0:00:00]} e6 {[%emt 0:00:00]} 2. d4 {[%emt 0:00:00]} d5 {[%emt 0:00:00]} 3. exd5 {[%emt 0:00:00]} exd5 {[%emt 0:00:00]} 4. Nf3 {[%emt 0:00:51]} Bg4 {[%emt 0:00:02]} 5. h3 {[%emt 0:01:59]} Bxf3 {[%emt 0:03:18]} 6. Qxf3 {[%emt 0:00:56]} c6 {[%emt 0:00:11]} 7. Be3 {[%emt 0:03:42]} Nd7 {[%emt 0:02:04]} 8. Bd3 {[%emt 0:03:11]} f6 {[%emt 0:01:49]} 9. O-O {[%emt 0:02:08]} Bd6 {[%emt 0:00:17]} 10. Re1 {[%emt 0:01:15]} Ne7 {[%emt 0:01:31]} 11. Qh5+ {[%emt 0:03:26]} g6 {[%emt 0:02:05]} 12. Qh6 {[%emt 0:03:41]} Qc7 {[%emt 0:00:34]} 13. Bd2 {[%emt 0:03:31]} O-O-O {[%emt 0:00:42]} 14. Qe3 {[%emt 0:03:47]} h5 {[%emt 0:02:42]} 15. Qf3 {[%emt 0:02:50]} g5 {[%emt 0:02:34]} 16. Nc3 {[%emt 0:03:20]} h4 {[%emt 0:04:25]} 17. a3 {[%emt 0:03:53]} Rdf8 {[%emt 0:00:35]} 18. Bf5 {[%emt 0:02:44] normal} 1-0

[Event "DVM U20w 2019"]
[Site "Braunschweig"]
[Date "2019.12.30"]
[Round "7"]
[White "Nanthivarman, Merymuthu"]
[Black "Danilova, Sofia"]
[Result "0-1"]
[ECO "B06"]
[WhiteElo "1260"]
[BlackElo "980"]
[Annotator "NA"]
[PlyCount "50"]
[EventDate "2019.12.27"]
[EventType "team-tourn"]
[EventRounds "7"]
[EventCountry "GER"]
[SourceTitle "playchess.com"]
[Source "ChessBase"]
[SourceQuality "1"]
[WhiteTeam "OSG Baden-Baden"]
[BlackTeam "SV Lingen"]
[TimeControl "40/5400+30:1800+30"]

1. e4 {[%emt 0:00:00]} g6 {[%emt 0:00:00]} 2. d4 {[%emt 0:00:00]} Nf6 {[%emt 0:00:00]} 3. Nc3 {[%emt 0:00:00]} c6 {[%emt 0:00:13]} 4. f4 {[%emt 0:00:23]} d5 {[%emt 0:01:29]} 5. e5 {[%emt 0:00:20]} Ne4 {[%emt 0:00:20]} 6. Nf3 {[%emt 0:00:44]} Bf5 {[%emt 0:01:03]} 7. Bd3 {[%emt 0:00:43]} e6 {[%emt 0:01:14]} 8. Qe2 {[%emt 0:01:31]} Bb4 {[%emt 0:00:58]} 9. Bd2 {[%emt 0:00:37]} Nxd2 {[%emt 0:00:39]} 10. Qxd2 {[%emt 0:01:06]} Bxd3 {[%emt 0:03:33]} 11. Qxd3 {[%emt 0:00:16]} Nd7 {[%emt 0:01:03]} 12. O-O-O {[%emt 0:00:54]} a6 {[%emt 0:01:03]} 13. Na4 {[%emt 0:07:01]} b5 {[%emt 0:02:03]} 14. a3 {[%emt 0:02:55]} Be7 {[%emt 0:02:45]} 15. Nc3 {[%emt 0:02:15]} a5 {[%emt 0:02:45]} 16. Na2 {[%emt 0:02:12]} b4 {[%emt 0:00:51]} 17. axb4 {[%emt 0:01:24]} axb4 {[%emt 0:00:30]} 18. Kb1 {[%emt 0:04:17]} Qa5 {[%emt 0:01:27]} 19. Qb3 {[%emt 0:03:27]} c5 {[%emt 0:01:29]} 20. c4 {[%emt 0:01:12]} cxd4 21. cxd5 {[%emt 0:01:03]} Nc5 {[%emt 0:02:19]} 22. Qxb4 {[%emt 0:02:37]} Qxa2+ {[%emt 0:01:47]} 23. Kc2 {[%emt 0:00:32]} Rc8 {[%emt 0:05:01]} 24. Qb5+ {[%emt 0:01:08]} Nd7+ {[%emt 0:00:27]} 25. Kd3 {[%emt 0:03:12]} Rb8 {[%emt 0:02:28] normal} 0-1

[Event "DVM U20w 2019"]
[Site "Braunschweig"]
[Date "2019.12.30"]
[Round "7"]
[White "Stelter, Finja"]
[Black "Relógio Stauber, Anna"]
[Result "0-1"]
[ECO "B10"]
[WhiteElo "1054"]
[BlackElo "1396"]
[Annotator "NA"]
[PlyCount "62"]
[EventDate "2019.12.27"]
[EventType "team-tourn"]
[EventRounds "7"]
[EventCountry "GER"]
[SourceTitle "playchess.com"]
[Source "ChessBase"]
[SourceQuality "1"]
[WhiteTeam "SK Lehrte 1919"]
[BlackTeam "SC Borussia Lichtenberg"]
[TimeControl "40/5400+30:1800+30"]

1. e4 {[%emt 0:00:00]} c6 {[%emt 0:00:00]} 2. Nc3 {[%emt 0:00:00]} d5 {[%emt 0:00:00]} 3. Nf3 {[%emt 0:00:00]} dxe4 {[%emt 0:00:00]} 4. Nxe4 {[%emt 0:00:00]} Bg4 {[%emt 0:00:20]} 5. Ng3 {[%emt 0:00:31]} Nf6 {[%emt 0:01:46]} 6. Bc4 {[%emt 0:01:06]} e6 {[%emt 0:01:06]} 7. h3 {[%emt 0:00:26]} Bxf3 {[%emt 0:01:01]} 8. Qxf3 {[%emt 0:00:34]} Bd6 {[%emt 0:01:42]} 9. d3 {[%emt 0:00:49]} O-O {[%emt 0:01:35]} 10. Bg5 {[%emt 0:00:46]} Nbd7 {[%emt 0:02:38]} 11. Nh5 {[%emt 0:01:54]} Be7 {[%emt 0:01:15]} 12. h4 {[%emt 0:01:43]} Nxh5 {[%emt 0:04:16]} 13. Qxh5 {[%emt 0:01:20]} Nf6 {[%emt 0:02:10]} 14. Qf3 {[%emt 0:01:29]} h6 {[%emt 0:02:19]} 15. Qh3 {[%emt 0:01:10]} Nd5 {[%emt 0:02:13]} 16. Bxd5 {[%emt 0:02:40]} cxd5 {[%emt 0:04:12]} 17. Qg3 {[%emt 0:01:21]} hxg5 {[%emt 0:04:18]} 18. hxg5 {[%emt 0:00:16]} Bxg5 {[%emt 0:00:09]} 19. Qh3 {[%emt 0:00:41]} Bh6 {[%emt 0:01:03]} 20. Ke2 {[%emt 0:01:40]} Qg5 {[%emt 0:03:05]} 21. Kf1 {[%emt 0:01:24]} Rac8 {[%emt 0:03:50]} 22. Re1 {[%emt 0:00:46]} Rxc2 {[%emt 0:03:04]} 23. Re2 {[%emt 0:02:00]} Rxe2 {[%emt 0:01:01]} 24. Kxe2 {[%emt 0:00:06]} Qd2+ {[%emt 0:01:19]} 25. Kf3 {[%emt 0:00:30]} Qxd3+ {[%emt 0:00:20]} 26. Kg4 {[%emt 0:00:23]} Qxh3+ {[%emt 0:00:44]} 27. Rxh3 Rc8 {[%emt 0:01:03]} 28. Rb3 {[%emt 0:00:27]} b6 {[%emt 0:00:54]} 29. Kg3 {[%emt 0:00:07]} Rc4 {[%emt 0:00:47]} 30. Kh3 {[%emt 0:01:05]} Bf4 {[%emt 0:00:34]} 31. g3 {[%emt 0:00:40]} Bd6 {[%emt 0:00:52] normal} 0-1

[Event "DVM U20w 2019"]
[Site "Braunschweig"]
[Date "2019.12.30"]
[Round "7"]
[White "Cerkez, Lorena"]
[Black "Zoll, Cindy"]
[Result "0-1"]
[ECO "C02"]
[WhiteElo "1000"]
[BlackElo "1387"]
[Annotator "NA"]
[PlyCount "117"]
[EventDate "2019.12.27"]
[EventType "team-tourn"]
[EventRounds "7"]
[EventCountry "GER"]
[SourceTitle "playchess.com"]
[Source "ChessBase"]
[SourceQuality "1"]
[WhiteTeam "Düsseldorfer SK"]
[BlackTeam "SG Güstrow/Teterow"]
[TimeControl "40/5400+30:1800+30"]

1. e4 {[%emt 0:00:00]} e6 {[%emt 0:00:00]} 2. d4 {[%emt 0:00:00]} d5 {[%emt 0:00:00]} 3. e5 {[%emt 0:00:00]} c5 {[%emt 0:00:09]} 4. c3 {[%emt 0:00:00]} Nc6 {[%emt 0:00:20]} 5. Nf3 {[%emt 0:00:00]} Qb6 {[%emt 0:00:36]} 6. a3 {[%emt 0:00:22]} Bd7 {[%emt 0:04:19]} 7. b4 {[%emt 0:04:47]} cxd4 {[%emt 0:00:42]} 8. cxd4 {[%emt 0:00:08]} Nge7 {[%emt 0:06:59]} 9. Be3 {[%emt 0:03:11]} Nf5 {[%emt 0:01:21]} 10. Nc3 {[%emt 0:03:17]} Rc8 {[%emt 0:02:37]} 11. Na4 {[%emt 0:00:29]} Qd8 {[%emt 0:01:42]} 12. Nc5 {[%emt 0:01:26]} Bxc5 {[%emt 0:12:59]} 13. bxc5 {[%emt 0:00:09]} O-O {[%emt 0:02:00]} 14. Bd3 {[%emt 0:00:53]} f6 {[%emt 0:03:11]} 15. exf6 {[%emt 0:05:21]} Qxf6 {[%emt 0:05:09]} 16. Bxf5 {[%emt 0:00:26]} Qxf5 {[%emt 0:01:22]} 17. O-O {[%emt 0:00:22]} Be8 {[%emt 0:05:07]} 18. Qb3 {[%emt 0:11:42]} Rc7 {[%emt 0:03:02]} 19. Qb1 {[%emt 0:03:10]} Qh5 {[%emt 0:04:39]} 20. Qd1 {[%emt 0:01:20]} Qg6 {[%emt 0:12:22]} 21. Kh1 {[%emt 0:01:37]} Qf6 {[%emt 0:04:45]} 22. Bg5 {[%emt 0:07:12]} Qf5 {[%emt 0:01:11]} 23. Qb1 {[%emt 0:01:14]} Qxb1 {[%emt 0:01:07]} 24. Raxb1 {[%emt 0:00:11]} Bh5 {[%emt 0:00:34]} 25. Be3 {[%emt 0:08:20]} Bxf3 {[%emt 0:01:05]} 26. gxf3 {[%emt 0:00:07]} Rxf3 {[%emt 0:00:15]} 27. Kg2 {[%emt 0:01:08]} Rcf7 {[%emt 0:01:14]} 28. Rg1 {[%emt 0:04:58]} R3f5 {[%emt 0:05:40]} 29. f4 {[%emt 0:03:59]} Na5 {[%emt 0:03:18]} 30. Kf3 {[%emt 0:05:32]} Nc6 {[%emt 0:02:44]} 31. Ke2 {[%emt 0:00:25]} Na5 {[%emt 0:02:39]} 32. Kd3 {[%emt 0:01:09]} Nc4 {[%emt 0:00:30]} 33. Bc1 {[%emt 0:00:12]} Rh5 {[%emt 0:02:06]} 34. Rg2 {[%emt 0:00:31]} Rh3+ {[%emt 0:00:26]} 35. Rg3 {[%emt 0:05:35]} Rxh2 {[%emt 0:02:02]} 36. Ra1 {[%emt 0:00:35]} Rh1 {[%emt 0:01:11]} 37. Kc2 {[%emt 0:01:14]} Rxf4 {[%emt 0:02:11]} 38. Bxf4 {[%emt 0:02:21]} Rxa1 {[%emt 0:00:08]} 39. Bc1 {[%emt 0:00:30]} Ra2+ {[%emt 0:00:41]} 40. Kb1 {[%emt 0:01:28]} Rf2 {[%emt 0:00:50]} 41. Rb3 {[%emt 0:36:07]} Rf7 {[%emt 0:30:50]} 42. a4 {[%emt 0:04:55]} b6 {[%emt 0:00:00]} 43. cxb6 {[%emt 0:00:00]} axb6 {[%emt 0:00:00]} 44. Ka2 {[%emt 0:00:00]} Ra7 {[%emt 0:00:00]} 45. Rb4 {[%emt 0:00:00]} b5 {[%emt 0:00:00]} 46. Rxb5 {[%emt 0:00:00]} Rxa4+ {[%emt 0:00:00]} 47. Kb1 {[%emt 0:00:00]} Na3+ {[%emt 0:00:00]} 48. Bxa3 {[%emt 0:00:00]} Rxa3 {[%emt 0:00:00]} 49. Kc2 {[%emt 0:00:00]} Kf7 {[%emt 0:00:00]} 50. Rb7+ {[%emt 0:00:00]} Kf6 {[%emt 0:00:00]} 51. Rb6 {[%emt 0:00:00]} h5 {[%emt 0:00:00]} 52. Kd2 {[%emt 0:00:00]} Rg3 {[%emt 0:00:00]} 53. Ke2 {[%emt 0:00:00]} h4 {[%emt 0:00:00]} 54. Kf2 {[%emt 0:00:00]} Rd3 {[%emt 0:00:00]} 55. Rb4 {[%emt 0:00:00]} Kf5 {[%emt 0:00:00]} 56. Ke2 {[%emt 0:00:00]} Ke4 {[%emt 0:00:00]} 57. Rb7 {[%emt 0:00:00]} Rg3 {[%emt 0:00:00]} 58. Kf2 {[%emt 0:00:00]} Rg6 {[%emt 0:00:00]} 59. Rb3 {[%emt 0:00:00] normal} 0-1